Cogmind - Beta 10.2 --- EXPLORER MODE // 2020.11.08 @ 20:33:06 // Halloween2020/ForbiddenLore Player: HexDSL Result: Destroyed by S-10 Pest with Light Assault Rifle Performance ------------- Evolutions (1) 500 Regions Visited (3) 600 Robots Destroyed (16) 80 Value Destroyed (279) 279 Prototype IDs (1) 20 Alien Tech Used (0) 0 Bonus (0) 0 TOTAL SCORE: 1479 Bonus ------- None Cogmind --------- Core Integrity 0/400 Matter 300/300 Energy 100/100 System Corruption 2% Temperature Cool (0) Movement Core (50) Location -9/Storage Parts ------- > --- POWER (3) -------- (None) > --- PROPULSION (2) --- (None) > --- UTILITY (3) ------ (None) > --- WEAPON (2) ------- (None) > --- INVENTORY (4) ---- Improved Heat Sink High-capacity Storage Unit Small Matter Pod (50) Peak State ------------ > --- POWER ------------ Ion Engine Light Ion Engine Light Nuclear Core > --- PROPULSION ------- Light Treads Light Treads > --- UTILITY ---------- Terrain Scanner Targeting Computer Core Shielding > --- WEAPON ----------- EM Pulse Gun Medium Laser > --- INVENTORY -------- High-capacity Storage Unit Small Matter Pod [Rating: 12] Favorites ----------- Power Ion Engine Engine Ion Engine Power Core Light Nuclear Core Propulsion Light Treads Treads Light Treads Utility Targeting Computer Device Terrain Scanner Processor Targeting Computer Protection Core Shielding Weapon Medium Laser Energy Gun Medium Laser Build | -11 -10 -9 -9 ------- Run | Scr Mat Mat Sto Slots Evolved 3 | . 1 2 . Power 2 | . 1 1 . Propulsion . | . . . . Utility 1 | . . 1 . Weapon . | . . . . Parts Attached 11 | 6 2 3 . Power 4 | 1 1 2 . Engine 3 | 1 1 1 . Core 1 | . . 1 . Reactor . | . . . . Propulsion 2 | 2 . . . Treads 2 | 2 . . . Leg . | . . . . Wheel . | . . . . Hover . | . . . . Flight . | . . . . Utility 3 | 2 . 1 . Device 1 | . . 1 . Storage . | . . . . Processor 1 | 1 . . . Hackware . | . . . . Protection 1 | 1 . . . Artifact . | . . . . Weapon 2 | 1 1 . . Energy Gun 2 | 1 1 . . Energy Cannon . | . . . . Ballistic Gun . | . . . . Ballistic Cannon . | . . . . Launcher . | . . . . Special Weapon . | . . . . Impact Weapon . | . . . . Slashing Weapon . | . . . . Piercing Weapon . | . . . . Special Melee Weapon . | . . . . Unidentified Prototypes 1 | . . 1 . Parts Lost 11 | . . 6 5 Power 4 | . . 3 1 Propulsion 2 | . . 1 1 Utility 3 | . . . 3 Weapon 2 | . . 2 . Highest Loss Streak 4 | . . 3 4 Average Slot Usage (%) 80 | . 90 88 33 Engine 17 | . 19 18 7 Core 2 | . . 8 . Treads 19 | . 25 20 . Device 3 | . . 8 6 Processor 11 | . 12 10 10 Protection 10 | . 12 10 8 Energy Gun 15 | . 19 13 . Naked Turns 1 | . . . 1 Heaviest Build 19 | 8 13 19 10 Greatest Support 40 | 40 40 40 20 Greatest Overweight (x) 3 | 1 . . 3 Average Overweight (x) . | . . . 1 Largest Inventory Capacity 4 | 4 4 4 4 Average Capacity 4 | 4 4 4 4 Most Carried 4 | 4 4 4 3 Average Carried 3 | 2 3 2 3 Final Capacity 4 | 4 4 4 4 Final Carried 4 | 2 4 3 3 Class Distribution -------------------- 100% | Hacker-Mutant Dominant Class ---------------- Hacker-Mutant | -10/Materials Hacker-Mutant | -9/Materials Hacker-Mutant | -9/Storage Resources | -11 -10 -9 -9 ----------- Run | Scr Mat Mat Sto Matter Collected 360 | 176 154 30 . Remotely . | . . . . Salvage Created 461 | . 250 211 . Parts 29 | . 20 9 . Haulers Intercepted . | . . . . Recyclers Shooed 1 | . 1 . . Parts Field Recycled . | . . . . Retrieved Matter . | . . . . Parts Self-Destructed . | . . . . Prevented . | . . . . Kills | -11 -10 -9 -9 ------- Run | Scr Mat Mat Sto Combat Hostiles Destroyed 11 | . 6 5 . Guns 10 | . 5 5 . AOE 1 | . 1 . . Classes Destroyed 7 | . 5 2 . Builder 1 | . 1 . . Tunneler 1 | . 1 . . Recycler 1 | . 1 . . Mechanic 1 | . . 1 . Watcher 1 | . . 1 . Swarmer 7 | . 4 3 . Grunt 4 | . 2 2 . Best Kill Streak 5 | . 3 5 . Combat Bots Only 3 | . 2 3 . Max Kills in Single Turn 1 | . 1 1 . Gunslinging . | . . . . Exploded 1 | . 1 . . Melee . | . . . . Uniques/NPCs Destroyed . | . . . . Combat | -11 -10 -9 -9 -------- Run | Scr Mat Mat Sto Damage Taken 1141 | . 151 454 536 Core 413 | . 12 60 341 Absorbed by Shields . | . . . . Core Remaining (%) 97 | 100 95 . . Volleys Fired 35 | . 16 19 . Largest 2 | . 2 2 . Hottest 90 | . 90 90 . Shots Fired 57 | . 29 28 . Gun 57 | . 29 28 . Cannon . | . . . . Launcher . | . . . . Special . | . . . . Kinetic . | . . . . Thermal 23 | . 14 9 . Explosive . | . . . . Electromagnetic 34 | . 15 19 . Robot Hit Streak 22 | . 14 22 . Robot Miss Streak 2 | . 2 1 . Penetration Max . | . . . . Secondary Targets 3 | . 2 1 . Max Gunslinging Chain 1 | . 1 1 . Shots Hit Robots 48 | . 24 24 . Core Hits 27 | . 11 12 4 Critical Hits . | . . . . Critical Kills . | . . . . Critical Parts Destroyed . | . . . . Melee Attacks . | . . . . Impact . | . . . . Slashing . | . . . . Piercing . | . . . . Sneak Attacks . | . . . . Combat Hostiles . | . . . . Follow-up Attacks . | . . . . Damage Inflicted 706 | . 336 338 32 Guns 622 | . 292 330 . Cannons . | . . . . Explosions 38 | . 38 . . Melee . | . . . . Ramming 46 | . 6 8 32 Kinetic . | . . . . Thermal 247 | . 161 86 . Explosive . | . . . . Electromagnetic 413 | . 169 244 . Impact . | . . . . Slashing . | . . . . Piercing . | . . . . Highest Corruption 2 | . . . 2 Average Corruption 2 | . . . 2 Corruption Purged . | . . . . Overload Shots . | . . . . Overflow Damage . | . . . . Projectiles . | . . . . Explosions . | . . . . Melee . | . . . . Knockbacks . | . . . . Impact . | . . . . Kinetic . | . . . . Secondary . | . . . . Self-Inflicted Damage 14 | . . . 14 Shots . | . . . . Rammed 13 | . 1 2 10 Targets Rammed 14 | . 2 2 10 Kicked . | . . . . Crushed 1 | . 1 . . Highest Temperature 441 | . 315 441 . Average Temperature 159 | . 121 188 . Received Heat Transfer 606 | . 54 273 279 Effects 4 | . . 4 . Shutdowns 3 | . . 3 . Energy Bleed 1 | . . 1 . Siege Activations . | . . . . Robots Corrupted . | . . . . Combat Hostiles . | . . . . Parts Fried 2 | . 1 1 . Impact Corruptions . | . . . . Robots Melted . | . . . . Combat Hostiles . | . . . . Parts Melted . | . . . . Heat Transferred 679 | . 420 259 . Parts Sabotaged . | . . . . Parts Stolen . | . . . . Parts Stripped . | . . . . Power Chain Reactions 1 | . 1 . . Missiles Intercepted . | . . . . Alert | -11 -10 -9 -9 ------- Run | Scr Mat Mat Sto Peak Influence 210 | . 210 152 49 Initial 44 | . . . 44 Average 50 | . 54 81 42 Maximum Alert Level 1 | . 1 . . Low Security (%) 94 | 100 88 100 100 Level 1 5 | . 11 . . Level 2 . | . . . . Level 3 . | . . . . Level 4 . | . . . . Level 5 . | . . . . High Security . | . . . . Max Security . | . . . . Squads Dispatched . | . . . . Investigation . | . . . . Extermination . | . . . . Reinforcement . | . . . . Assault . | . . . . Garrison . | . . . . Intercept . | . . . . Construction Impeded . | . . . . Haulers Reinforced . | . . . . Stealth | -11 -10 -9 -9 --------- Run | Scr Mat Mat Sto Distress Signals 4 | . . 3 1 Communications Jammed . | . . . . Distress Signals . | . . . . Times Spotted 34 | . 11 18 5 Peak Tracking Total 9 | . 5 9 5 Tactical Retreats 1 | . . 1 . Traps | -11 -10 -9 -9 ------- Run | Scr Mat Mat Sto Traps Triggered 1 | . 1 . . Indirectly . | . . . . Trap Hack Attempts . | . . . . Triggered . | . . . . Disarmed . | . . . . Reprogrammed . | . . . . Reused . | . . . . Traps Extracted . | . . . . Installed . | . . . . Triggered . | . . . . Machines | -11 -10 -9 -9 ---------- Run | Scr Mat Mat Sto Machines Disabled . | . . . . Max in Single Turn . | . . . . Machines Sabotaged . | . . . . Garrisons Compromised . | . . . . Overloaded Fab Kills . | . . . . Fab Network Shutdowns . | . . . . Hacking | -11 -10 -9 -9 --------- Run | Scr Mat Mat Sto Machines Accessed 2 | . 2 . . Terminals 1 | . 1 . . Fabricators . | . . . . Repair Stations . | . . . . Recycling Units 1 | . 1 . . Scanalyzers . | . . . . Garrison Access . | . . . . Total Hacks 3 | . 3 . . Successful 2 | . 2 . . Failed 1 | . 1 . . Catastrophic . | . . . . Database Lockouts . | . . . . Manual . | . . . . Terminals 1 | . 1 . . Fabricators . | . . . . Repair Stations . | . . . . Recycling Units 2 | . 2 . . Scanalyzers . | . . . . Garrison Access . | . . . . Terminal Hacks 1 | . 1 . . Alert Level 1 | . 1 . . Fabricator Hacks . | . . . . Repair Station Hacks . | . . . . Recycling Unit Hacks 1 | . 1 . . Retrieve Components 1 | . 1 . . Scanalyzer . | . . . . Garrison Access Hacks . | . . . . Unauthorized Hacks . | . . . . Terminals . | . . . . Fabricators . | . . . . Repair Stations . | . . . . Recycling Units . | . . . . Scanalyzers . | . . . . Garrison Access . | . . . . Data Cores Recovered . | . . . . Used . | . . . . Hacking Detections 2 | . 2 . . Full Trace Events . | . . . . Feedback Events . | . . . . Feedback Blocked . | . . . . Robot Schematics Acquired . | . . . . Robots Built . | . . . . Matter . | . . . . Time . | . . . . Total Robot Build Rating . | . . . . Part Schematics Acquired . | . . . . Parts Built . | . . . . Matter . | . . . . Time . | . . . . Total Part Build Rating . | . . . . Parts Repaired . | . . . . Time . | . . . . Parts Recycled . | . . . . Recycled Matter . | . . . . Retrieved Matter . | . . . . Retrieved Components 5 | . 5 . . Parts Scanalyzed . | . . . . Part Schematics Acquired . | . . . . Parts Damaged . | . . . . Bothacking | -11 -10 -9 -9 ------------ Run | Scr Mat Mat Sto Used RIF Installer . | . . . . Robots Hacked . | . . . . Non-combat . | . . . . Combat . | . . . . Robot Hacks Applied . | . . . . Relay Couplers Released . | . . . . Robots Rewired . | . . . . Allies Hacked . | . . . . Hacks Repelled . | . . . . Allies | -11 -10 -9 -9 -------- Run | Scr Mat Mat Sto Total Allies . | . . . . Largest Group . | . . . . Highest-Rated Group . | . . . . Highest-Rated Ally . | . . . . Total Orders . | . . . . Ally Attacks . | . . . . Total Damage . | . . . . Kills . | . . . . Allies Corrupted . | . . . . Allies Melted . | . . . . Intel | -11 -10 -9 -9 ------- Run | Scr Mat Mat Sto Robot Analysis Total . | . . . . Derelict Logs Recovered . | . . . . Drone Launches . | . . . . Drone Recoveries . | . . . . Exploration | -11 -10 -9 -9 ------------- Run | Scr Mat Mat Sto Turns Passed 1050 | 164 491 256 139 Spaces Moved 604 | 109 274 126 95 Core 121 | 32 . . 89 Treads 483 | 77 274 126 6 Legs . | . . . . Wheels . | . . . . Hover . | . . . . Flight . | . . . . Fastest Speed 50 | 50 160 160 50 Average Speed 151 | 138 160 160 130 Slowest Speed 200 | 160 160 160 200 Overloaded Moves . | . . . . Propulsion Burnouts . | . . . . Robots Hopped . | . . . . Cave-ins Triggered . | . . . . Exploration Rate (%) 23 | 8 47 17 21 Regions Visited 3 Branch Regions 1 Pre-discovered Areas . | . . . . Known Exits Taken 3 | 1 1 1 . Unknown Exits Taken . | . . . . Scrap Searched . | . . . . Spaces Dug . | . . . . Terrain Destroyed 3 | . 3 . . Melee . | . . . . Projectile . | . . . . AOE 3 | . 3 . . Terrain Rammed . | . . . . Walls Destroyed . | . . . . Machines Disabled . | . . . . Actions | -11 -10 -9 -9 --------- Run | Scr Mat Mat Sto Total 675 | 122 297 151 105 Wait . | . . . . Move 601 | 108 273 125 95 Hop . | . . . . Pick Up 14 | 8 4 2 . Fast Attach . | . . . . Attach 11 | 6 2 3 . Detach . | . . . . Swap . | . . . . Drop . | . . . . Fire 35 | . 16 19 . Melee . | . . . . Ram 10 | . . . 10 Kick . | . . . . Crush 4 | . 2 2 . Escape Stasis . | . . . . Rewire . | . . . . Trap . | . . . . Miscellaneous . | . . . . Route ------- -11/Scrapyard -10/Materials (discovered 2 exits: *Mat / *Min) -9/Materials -9/Storage History --------- Turn | Location | Event 25 | -11/Scrapyard | Identified exit to Materials 25 | -11/Scrapyard | Discovered exit to Materials (range 16) 165 | -11/Scrapyard | Entered Materials 165 | -10/Materials | Evolved 1 slot: Power x1 318 | -10/Materials | Build established: Hacker-Mutant 467 | -10/Materials | Identified exit to Mines 467 | -10/Materials | Discovered exit to Mines (range 11) 629 | -10/Materials | Identified exit to Materials 629 | -10/Materials | Discovered exit to Materials (range 15) 656 | -10/Materials | Entered another Materials area 656 | -9/Materials | Evolved 2 slots: Power x1, Utility x1 880 | -9/Materials | Lost 3 parts (1p2w) 886 | -9/Materials | Identified exit to Storage 886 | -9/Materials | Discovered exit to Storage (range 15) 912 | -9/Materials | Entered Storage 952 | -9/Storage | Lost 4 parts (2p2n) 1016 | -9/Storage | Core integrity fell below 50% 1040 | -9/Storage | Core integrity fell below 20% 1051 | -9/Storage | Destroyed by S-10 Pest with Light Assault Rifle Last Messages --------------- Lgt. Nuclear Core destroyed. Lgt. Treads destroyed. LOCATION=STORAGE GOAL=ESCAPE Lgt. Treads destroyed. K-01 Serf collects debris. K-01 Serf cleans the Transport Mainframe. K-01 Serf collects debris. K-01 Serf cleans the Transport Mainframe. Slammed into Y-45 Defender. Terrain Scanner destroyed. Hvy. Ion Engine destroyed. Core Shielding destroyed. Slammed into R-06 Scavenger. R-06 Scavenger distress signal alerts nearby ally. Slammed into S-10 Pest. Slammed into A-02 Transporter. Targeting Computer destroyed. System corrupted by crushing effect (+2). Destabilizing: Core damaged (-12). Map ----- +----------------------------------------------------+ | ?????????????????????????????????????????????????? | | ?????????????????????????????????????????????????? | | ?????????????????????????????????????????????????? | | ?????????????????????????????????????????????????? | | ?????????????????????????????????????????????????? | | ?????????????????????????????????????????????????? | | ?????????????????????????????????????????????????? | | ?????????????????????????????????????????????????? | | ?????????????????????????????????????????????????? | | ?????????????????????????????????????????????????? | | ?????????????????????????????????????????????????? | | ?????????????????????????????????????????????????? | | ?????????????????????????????????????????????????? | | ?????????????????????????????????????????????????? | | ?????????????????????????????????????????????????? | | ?????????????????????????????????????????????????? | | ?????????????????????????????????????????????????? | | ??#??????????????# ?????????????????????????????? | | ?????????????????# "???#????????????????????????? | | #?################ """ #????????????????????????? | | #?# """"" """"" # """ ###??????????????????????? | | #??# """"" """"" # + ??????????????????????? | | #??# """"" """"" # """ # #??????????????????????? | | #??# # """k# ###????????????????????? | | #??# # """ /a/ ?????????????????????? | | #??# #? #@#??????????????????????? | | ####+######+#########/###s#??????????????????????? | | % %s#??????????????????????? | | a??????????????????????? | | #??????????????????????? | | #"##########" "######+##+##??????????????????????? | | ? ??????#"R"#?????????????????????????????????? | | ??????????#"""#?????????????????????????????????? | | "??????????#####?????????????????????????????????? | | ?????????????????????????????????????????????????? | | ?????????????????????????????????????????????????? | | ?????????????????????????????????????????????????? | | ? ???????????????????????????????????????????????? | | ?????????????????????????????????????????????????? | | ?????????????????????????????????????????????????? | | ?????????????????????????????????????????????????? | | ?????????????????????????????????????????????????? | | ?????????????????????????????????????????????????? | | ?????????????????????????????????????????????????? | | | | | | | | | | | | | +----------------------------------------------------+ Best States ------------- Heat Dissipation 28 Energy Generation 28 Energy Capacity 365 Matter Stores 300 Matter Capacity 300 Sight Range 16 Terrain Scan Range 14 Terrain Scan Density 10 Resistance: KI 35 Resistance: TH 35 Resistance: EX 35 Resistance: EM 35 Resistance: I 35 Resistance: S 35 Resistance: P 35 Core Shielding 20 Evasion (%) 50 Targeting Accuracy 5 Recoil Reduction 2 Offensive Hacking 20 Item Schematics ----------------- None Robot Schematics ------------------ None Fabricated ------------ Nothing Alien Tech Used ----------------- None Achievements -------------- None Challenges ------------ None Game ------ Seed RemoteLongswordMatrix Manual? 0 Play Time 00:09:37 Cumulative 7.8 hours Start 2020.11.08 @ 20:23:16 End 2020.11.08 @ 20:33:06 Sessions 1 Manual Loads 0 Difficulty Explorer Special Mode Halloween2020/ForbiddenLore Game No. 23 Rogue 0 Adventurer 0 Explorer 23 Win Type - Total 0 Types 0/0/0/0/0/0/0/0/0 Lore% 6 Gallery% 17 Achievement% 16 Wizard Run 0 Options --------- ASCII 0 Keyboard 1 Movement Vi Keybinds 0 Fullscreen 2 Font 24/Smallcaps Map View 113x50 Tactical HUD 0 Map Filters NONE Filters NONE Steam 1 RUN: 3d93f3f9-c04d-4af7-9699-f494b1b82131